fUSD/lending_fUSD_20240104
["ID","MTS","AMOUNT","RATE_DAILY","PERIOD"]
[310162223,1704384738947,-150.0,0.00036708,2]
[310162224,1704384738956,-207.0,0.0003671,2]
[310162225,1704384738965,-206.0,0.0003671,2]
[310162226,1704384738976,-207.0,0.0003671,2]
[310162227,1704384738985,-215.0,0.0003671,2]
[310162228,1704384738994,-1968.74,0.00036711,2]
[310162229,1704384739003,-3576.92,0.00036711,2]
[310162230,1704384739013,-5310.38,0.00036711,2]
[310162231,1704384739022,-5485.86,0.00036711,2]
[310162232,1704384739032,-1727.19,0.00036711,2]
[310162233,1704384739042,-981.47,0.00036711,2]
[310162234,1704384739052,-2791.07,0.00036711,2]
[310162235,1704384739061,-545.35,0.00036711,2]
[310162236,1704384739070,-3707.22,0.00036711,2]
[310162237,1704384739080,-887.38,0.00036711,2]
[310162238,1704384739089,-830.05,0.00036711,2]
[310162239,1704384739099,-1695.17,0.00036711,2]
[310162240,1704384739108,-1057.1,0.00036711,2]
[310162241,1704384739117,-742.18,0.00036711,2]
[310162242,1704384739127,-4293.88,0.00036711,2]
[310162243,1704384739137,-2374.14,0.00036711,2]
[310162244,1704384739147,-1229.49,0.00036711,2]
[310162245,1704384739157,-150.0,0.00036711,2]
[310162246,1704384739166,-150.0,0.00036711,2]
[310162247,1704384739175,-500.0,0.00036711,2]
[310162248,1704384739185,-2261.59,0.00036711,2]
[310162249,1704384739194,-1642.49,0.00036711,2]
[310162250,1704384739204,-500.0,0.00036711,2]
[310162251,1704384739213,-155.0,0.00036712,4]
[310162252,1704384739222,-13035.1985087,0.00036712,4]
[310162253,1704384739231,-500.2820597,0.00036712,4]
[310162254,1704384739241,-200.0,0.00036712,2]
[310162255,1704384739250,-3407.35433293,0.00036712,3]
[310162256,1704384739260,-2044.0,0.00036712,5]
[310162257,1704384739270,-885.86294653,0.00036712,15]
[310162258,1704384739279,-576.77,0.00036712,2]
[310162259,1704384739288,-1403.56,0.00036712,2]
[310162260,1704384739297,-619.71506734,0.00036712,15]
[310162261,1704384739306,-500.0,0.00036712,2]
[310162262,1704384739316,-500.0,0.00036712,2]
[310162263,1704384739325,-500.0,0.00036712,2]
[310162264,1704384739334,-589.83,0.00036712,2]
[310162265,1704384739343,-768.69,0.00036712,2]
[310162266,1704384739353,-603.66,0.00036712,2]
[310162267,1704384739362,-599.73,0.00036712,2]
[310162268,1704384739371,-609.87,0.00036712,2]
[310162269,1704384739387,-607.88,0.00036712,2]
[310162270,1704384739396,-500.0,0.00036712,2]
[310162271,1704384739406,-911.18,0.00036712,2]
[310162272,1704384739415,-500.0,0.00036712,2]
[310162273,1704384739425,-718.24,0.00036712,2]
[310162274,1704384739434,-690.39,0.00036712,2]
[310162275,1704384739444,-257.36,0.00036712,2]
[310162276,1704384739453,-712.49,0.00036712,2]
[310162277,1704384739463,-500.0,0.00036712,2]
[310162278,1704384739472,-500.0,0.00036712,2]
[310162279,1704384739482,-500.0,0.00036712,2]
[310162280,1704384739491,-582.68,0.00036712,2]
[310162281,1704384739501,-500.0,0.00036712,2]
[310162282,1704384739511,-1117.06,0.00036712,2]
[310162283,1704384739520,-895.08173662,0.00036712,15]
[310162284,1704384739530,-500.0,0.00036712,2]
[310162285,1704384739539,-585.66,0.00036712,2]
[310162286,1704384739549,-789.66,0.00036712,2]
[310162287,1704384739559,-500.0,0.00036712,2]
[310162288,1704384739570,-500.0,0.00036712,2]
[310162289,1704384739579,-341.80796406,0.00036712,2]
[310162290,1704384739589,-392.15309683,0.00036712,2]
[310162291,1704384739598,-500.0,0.00036712,2]
[310162292,1704384739607,-500.0,0.00036712,2]
[310162293,1704384739616,-500.0,0.00036712,2]
[310162294,1704384739625,-500.0,0.00036712,2]
[310162295,1704384739635,-500.0,0.00036712,2]
[310162296,1704384739645,-500.0,0.00036712,2]
[310162297,1704384739654,-867.28,0.00036712,2]
[310162298,1704384739664,-764.44,0.00036712,2]
[310162299,1704384739673,-883.27,0.00036712,2]
[310162300,1704384739683,-500.0,0.00036712,2]
[310162301,1704384739693,-500.0,0.00036712,2]
[310162302,1704384739702,-842.43,0.00036712,2]
[310162303,1704384739711,-682.97,0.00036712,2]
[310162304,1704384739720,-500.0,0.00036712,2]
[310162305,1704384739730,-500.0,0.00036712,2]
[310162306,1704384739739,-670.92,0.00036712,2]
[310162307,1704384739749,-500.0,0.00036712,2]
[310162308,1704384739758,-1005.13,0.00036712,2]
[310162309,1704384739767,-1406.92,0.00036712,2]
[310162310,1704384739777,-725.93,0.00036712,2]
[310162311,1704384739786,-699.62,0.00036712,2]
[310162312,1704384739795,-1117.49,0.00036712,2]
[310162313,1704384739804,-674.55,0.00036712,2]
[310162314,1704384739813,-500.0,0.00036712,2]
[310162315,1704384739822,-677.2,0.00036712,2]
[310162316,1704384739832,-500.0,0.00036712,2]
[310162317,1704384739841,-500.0,0.00036712,2]
[310162318,1704384739850,-500.0,0.00036712,2]
[310162319,1704384739859,-782.63,0.00036712,2]
[310162320,1704384739868,-500.0,0.00036712,2]
[310162321,1704384739878,-510.31,0.00036712,2]
[310162322,1704384739887,-901.96,0.00036712,2]
[310162323,1704384739896,-500.0,0.00036712,2]
[310162324,1704384739906,-662.32,0.00036712,2]
[310162325,1704384739915,-830.54,0.00036712,2]
[310162326,1704384739925,-564.77165345,0.00036712,2]
[310162327,1704384739935,-1824.67,0.00036712,2]
[310162328,1704384739945,-500.0,0.00036712,2]
[310162329,1704384739954,-931.95,0.00036712,2]
[310162330,1704384739963,-500.0,0.00036712,2]
[310162331,1704384739972,-500.0,0.00036712,2]
[310162332,1704384739981,-500.0,0.00036712,2]
[310162333,1704384739990,-654.3,0.00036712,2]
[310162334,1704384739999,-500.0,0.00036712,2]
[310162335,1704384740009,-1130.23,0.00036712,2]
[310162336,1704384740018,-559.43,0.00036712,2]
[310162337,1704384740028,-500.0,0.00036712,2]
[310162338,1704384740037,-1026.82,0.00036712,2]
[310162339,1704384740047,-343.70722643,0.00036712,2]
[310162340,1704384740057,-586.09,0.00036712,2]
[310162341,1704384740067,-574.52,0.00036712,2]
[310162342,1704384740076,-593.19,0.00036712,2]
[310162343,1704384740086,-633.75,0.00036712,2]
[310162344,1704384740096,-731.33,0.00036712,2]
[310162345,1704384740105,-756.82,0.00036712,2]
[310162346,1704384740115,-500.0,0.00036712,2]
[310162347,1704384740124,-500.0,0.00036712,2]
[310162348,1704384740134,-642.48,0.00036712,2]
[310162349,1704384740145,-812.26,0.00036712,2]
[310162350,1704384740154,-995.06,0.00036712,2]
[310162351,1704384740164,-1428.61,0.00036712,2]
[310162352,1704384740174,-500.0,0.00036712,2]
[310162353,1704384740184,-500.0,0.00036712,2]
[310162354,1704384740194,-500.0,0.00036712,2]
[310162355,1704384740203,-719.19,0.00036712,2]
[310162356,1704384740214,-966.27,0.00036712,2]
[310162357,1704384740223,-500.0,0.00036712,2]
[310162358,1704384740233,-737.41,0.00036712,2]
[310162359,1704384740243,-683.25,0.00036712,2]
[310162360,1704384740253,-708.7,0.00036712,2]
[310162361,1704384740263,-345.27278303,0.00036712,2]
[310162362,1704384740273,-1313.57,0.00036712,2]
[310162363,1704384740282,-537.81,0.00036712,2]
[310162364,1704384740292,-978.7,0.00036712,2]
[310162365,1704384740302,-500.0,0.00036712,2]
[310162366,1704384740311,-855.47,0.00036712,2]
[310162367,1704384740321,-605.78123427,0.00036712,2]
[310162368,1704384740331,-500.0,0.00036712,2]
[310162369,1704384740341,-504.3,0.00036712,2]
[310162370,1704384740351,-500.0,0.00036712,2]
[310162371,1704384740361,-758.78,0.00036712,2]
[310162372,1704384740371,-500.0,0.00036712,2]
[310162373,1704384740386,-500.0,0.00036712,2]
[310162374,1704384740395,-1007.26,0.00036712,2]
[310162375,1704384740405,-500.0,0.00036712,2]
[310162376,1704384740415,-500.0,0.00036712,2]
[310162377,1704384740425,-500.0,0.00036712,2]
[310162378,1704384740435,-500.0,0.00036712,2]
[310162379,1704384740445,-691.87,0.00036712,2]
[310162380,1704384740454,-944.11,0.00036712,2]
[310162381,1704384740465,-500.0,0.00036712,2]
[310162382,1704384740476,-1634.31,0.00036712,2]
[310162383,1704384740487,-500.0,0.00036712,2]
[310162384,1704384740497,-1233.69,0.00036712,2]
[310162385,1704384740506,-1332.99,0.00036712,2]
[310162386,1704384740517,-500.0,0.00036712,2]
[310162387,1704384740527,-650.36,0.00036712,2]
[310162388,1704384740537,-1754.71,0.00036712,2]
[310162389,1704384740547,-602.68,0.00036712,2]
[310162390,1704384740556,-1493.68,0.00036712,2]
[310162391,1704384740566,-500.0,0.00036712,2]
[310162392,1704384740576,-705.76,0.00036712,2]
[310162393,1704384740586,-1386.7,0.00036712,2]
[310162394,1704384740596,-500.0,0.00036712,2]
[310162395,1704384740607,-1253.93,0.00036712,2]
[310162396,1704384740616,-712.45,0.00036712,2]
[310162397,1704384740627,-1385.49,0.00036712,2]
[310162398,1704384740637,-719.5,0.00036712,2]
[310162399,1704384740648,-795.9,0.00036712,2]
[310162400,1704384740658,-500.0,0.00036712,2]
[310162401,1704384740669,-702.74,0.00036712,2]
[310162402,1704384740678,-614.02,0.00036712,2]
[310162403,1704384740688,-782.01,0.00036712,2]
[310162404,1704384740698,-2346.06,0.00036712,2]
[310162405,1704384740709,-1144.21,0.00036712,2]
[310162406,1704384740719,-825.04,0.00036712,2]
[310162407,1704384740729,-759.74,0.00036712,2]
[310162408,1704384740739,-591.92,0.00036712,2]
[310162409,1704384740748,-1538.71,0.00036712,2]
[310162410,1704384740758,-518.12917358,0.00036712,2]
[310162411,1704384740768,-1209.37,0.00036712,2]
[310162412,1704384740778,-500.0,0.00036712,2]
[310162413,1704384740788,-150.0,0.00036712,2]
[310162414,1704384740797,-500.0,0.00036712,2]
[310162415,1704384740807,-1769.02,0.00036712,2]
[310162416,1704384740817,-1608.02,0.00036712,2]
[310162417,1704384740827,-866.14,0.00036712,2]
[310162418,1704384740837,-500.0,0.00036712,2]
[310162419,1704384740847,-597.7,0.00036712,2]
[310162420,1704384740857,-3238.36,0.00036712,2]
[310162421,1704384740867,-1312.71,0.00036712,2]
[310162422,1704384740877,-758.49,0.00036712,2]
[310162423,1704384740888,-861.13,0.00036712,2]
[310162424,1704384740897,-430.57052734,0.00036712,2]
[310162425,1704384740907,-554.04,0.00036712,2]
[310162426,1704384740917,-500.0,0.00036712,2]
[310162427,1704384740927,-910.85,0.00036712,2]
[310162428,1704384740937,-647.07,0.00036712,2]
[310162429,1704384740947,-596.22,0.00036712,2]
[310162430,1704384740957,-840.62,0.00036712,2]
[310162431,1704384740967,-552.48,0.00036712,2]
[310162432,1704384740977,-859.39,0.00036712,2]
[310162433,1704384740987,-1225.89,0.00036712,2]
[310162434,1704384740998,-957.37,0.00036712,2]
[310162435,1704384741008,-765.17,0.00036712,2]
[310162436,1704384741018,-1445.4,0.00036712,2]
[310162437,1704384741028,-659.69,0.00036712,2]
[310162438,1704384741038,-704.58,0.00036712,2]
[310162439,1704384741048,-500.0,0.00036712,2]
[310162440,1704384741058,-562.44,0.00036712,2]
[310162441,1704384741067,-616.78,0.00036712,2]
[310162442,1704384741078,-683.51,0.00036712,2]
[310162443,1704384741088,-661.23,0.00036712,2]
[310162444,1704384741097,-529.83,0.00036712,2]
[310162445,1704384741107,-782.54,0.00036712,2]
[310162446,1704384741117,-588.15,0.00036712,2]
[310162447,1704384741127,-1195.11,0.00036712,2]
[310162448,1704384741137,-674.54,0.00036712,2]
[310162449,1704384741150,-1310.86,0.00036712,2]
[310162450,1704384741160,-831.54,0.00036712,2]
[310162451,1704384741170,-500.0,0.00036712,2]
[310162452,1704384741180,-1025.23,0.00036712,2]
[310162453,1704384741190,-1101.26,0.00036712,2]
[310162454,1704384741200,-785.28,0.00036712,2]
[310162455,1704384741209,-705.23,0.00036712,2]
[310162456,1704384741220,-1065.41,0.00036712,2]
[310162457,1704384741230,-1054.98,0.00036712,2]
[310162458,1704384741244,-995.7,0.00036712,2]
[310162459,1704384741254,-744.22,0.00036712,2]
[310162460,1704384741264,-1427.22,0.00036712,2]
[310162461,1704384741274,-1238.86,0.00036712,2]
[310162462,1704384741283,-887.92,0.00036712,2]
[310162463,1704384741293,-742.23,0.00036712,2]
[310162464,1704384741303,-666.3,0.00036712,2]
[310162465,1704384741314,-907.32,0.00036712,2]
[310162466,1704384741324,-500.0,0.00036712,2]
[310162467,1704384741333,-702.86,0.00036712,2]
[310162468,1704384741343,-500.0,0.00036712,2]
[310162469,1704384741353,-500.0,0.00036712,2]
[310162470,1704384741364,-945.74,0.00036712,2]
[310162471,1704384741374,-920.91,0.00036712,2]
[310162472,1704384741390,-672.89,0.00036712,2]
[310162473,1704384741401,-1400.63,0.00036712,2]
[310162474,1704384741411,-535.81,0.00036712,2]
[310162475,1704384741422,-500.0,0.00036712,2]
[310162476,1704384741432,-750.79,0.00036712,2]
[310162477,1704384741442,-523.13,0.00036712,2]
[310162478,1704384741452,-1057.28,0.00036712,2]
[310162479,1704384741464,-1335.29,0.00036712,2]
[310162480,1704384741479,-878.66,0.00036712,2]
[310162481,1704384741490,-1605.48,0.00036712,2]
[310162482,1704384741500,-847.37,0.00036712,2]
[310162483,1704384741511,-762.22,0.00036712,2]
[310162484,1704384741522,-500.0,0.00036712,2]
[310162485,1704384741532,-1736.22,0.00036712,2]
[310162486,1704384741542,-668.67,0.00036712,2]
[310162487,1704384741552,-1025.7,0.00036712,2]
[310162488,1704384741562,-530.17,0.00036712,2]
[310162489,1704384741572,-500.0,0.00036712,2]
[310162490,1704384741584,-500.0,0.00036712,2]
[310162491,1704384741594,-790.72,0.00036712,2]
[310162492,1704384741604,-500.0,0.00036712,2]
[310162493,1704384741614,-959.6,0.00036712,2]
[310162494,1704384741624,-197.12480305,0.00036712,2]
[310162495,1704384741635,-516.03,0.00036712,2]
[310162496,1704384741645,-873.69,0.00036712,2]
[310162497,1704384741654,-506.97,0.00036712,2]
[310162498,1704384741664,-500.0,0.00036712,2]
[310162499,1704384741674,-1032.21,0.00036712,2]
[310162500,1704384741685,-529.99,0.00036712,2]
[310162501,1704384741694,-917.61,0.00036712,2]
[310162502,1704384741704,-500.0,0.00036712,2]
[310162503,1704384741713,-500.0,0.00036712,2]
[310162504,1704384741723,-610.7,0.00036712,2]
[310162505,1704384741732,-1220.03,0.00036712,2]
[310162506,1704384741742,-1169.06,0.00036712,2]
[310162507,1704384741752,-534.36,0.00036712,2]
[310162508,1704384741762,-631.5,0.00036712,2]
[310162509,1704384741771,-1507.11,0.00036712,2]
[310162510,1704384741781,-680.74,0.00036712,2]
[310162511,1704384741791,-500.0,0.00036712,2]
[310162512,1704384741800,-215.54005816,0.00036712,2]
[310162513,1704384741823,-2169.33,0.00036712,2]
[310162514,1704384741833,-2030.09,0.00036712,2]
[310162515,1704384741844,-500.0,0.00036712,2]
[310162516,1704384741855,-1479.9,0.00036712,2]
[310162517,1704384741866,-500.0,0.00036712,2]
[310162518,1704384741877,-647.97610161,0.00036712,2]
[310162519,1704384741888,-822.67,0.00036712,2]
[310162520,1704384741898,-3860.65,0.00036712,2]
[310162521,1704384741910,-1227.94,0.00036712,2]
[310162522,1704384741920,-1694.53,0.00036712,2]
[310162523,1704384741930,-654.78,0.00036712,2]
[310162524,1704384741941,-675.26,0.00036712,2]
[310162525,1704384741952,-1024.69,0.00036712,2]
[310162526,1704384741962,-2166.67,0.00036712,2]
[310162527,1704384741972,-500.0,0.00036712,2]
[310162528,1704384741982,-500.0,0.00036712,2]
[310162529,1704384741993,-644.95,0.00036712,2]
[310162530,1704384742003,-6237.21,0.00036712,2]
[310162531,1704384742014,-2236.13,0.00036712,2]
[310162532,1704384742024,-500.0,0.00036712,2]
[310162533,1704384742034,-1565.67,0.00036712,2]
[310162534,1704384742045,-748.67,0.00036712,2]
[310162535,1704384742056,-1806.87,0.00036712,2]
[310162536,1704384742066,-500.0,0.00036712,2]
[310162537,1704384742077,-1248.14,0.00036712,2]
[310162538,1704384742088,-7320.87,0.00036712,2]
[310162539,1704384742097,-500.0,0.00036712,2]
[310162540,1704384742108,-596.18,0.00036712,2]
[310162541,1704384742118,-712.06,0.00036712,2]
[310162542,1704384742129,-1160.21,0.00036712,2]
[310162543,1704384742139,-1547.86,0.00036712,2]
[310162544,1704384742150,-583.13,0.00036712,2]
[310162545,1704384742161,-1053.44,0.00036712,2]
[310162546,1704384742172,-11509.81,0.00036712,2]
[310162547,1704384742182,-4480.87,0.00036712,2]
[310162548,1704384742193,-500.0,0.00036712,2]
[310162549,1704384742203,-983.01,0.00036712,2]
[310162550,1704384742214,-1810.3,0.00036712,2]
[310162551,1704384742225,-22757.31,0.00036712,2]
[310162552,1704384742236,-500.0,0.00036712,2]
[310162553,1704384742246,-1146.84,0.00036712,2]
[310162554,1704384742258,-10482.29,0.00036712,2]
[310162555,1704384742542,-682.62,0.00036712,2]
[310162556,1704384742552,-646.84,0.00036712,2]
[310162557,1704384742562,-2236.54,0.00036712,2]
[310162558,1704384742571,-3000.04,0.00036712,2]
[310162559,1704384742580,-5241.12,0.00036712,2]
[310162560,1704384742590,-562.73,0.00036712,2]
[310162561,1704384742599,-1267.2,0.00036712,2]
[310162562,1704384742609,-570.19,0.00036712,2]
[310162563,1704384742618,-1044.59,0.00036712,2]
[310162564,1704384742628,-1733.36,0.00036712,2]
[310162565,1704384742638,-506.99,0.00036712,2]
[310162566,1704384742647,-2344.65,0.00036712,2]
[310162567,1704384742657,-500.0,0.00036712,2]
[310162568,1704384742666,-1148.98,0.00036712,2]
[310162569,1704384742676,-3957.27,0.00036712,2]
[310162570,1704384742686,-666.95,0.00036712,2]
[310162571,1704384742695,-4906.37,0.00036712,2]
[310162572,1704384742705,-3313.6,0.00036712,2]
[310162573,1704384742715,-500.0,0.00036712,2]
[310162574,1704384742725,-781.77,0.00036712,2]
[310162575,1704384742735,-516.52230191,0.00036712,2]
[310162576,1704384742744,-500.0,0.00036712,2]
[310162577,1704384742753,-1046.86,0.00036712,2]
[310162578,1704384742763,-521.63,0.00036712,2]
[310162579,1704384742773,-3795.31,0.00036712,2]
[310162580,1704384742783,-680.9,0.00036712,2]
[310162581,1704384742792,-40011.89,0.00036712,2]
[310162582,1704384742801,-744.5,0.00036712,2]
[310162583,1704384742811,-941.09,0.00036712,2]
[310162584,1704384742820,-4440.8,0.00036712,2]
[310162585,1704384742829,-3124.54,0.00036712,2]
[310162586,1704384742839,-500.0,0.00036712,2]
[310162587,1704384742848,-529.49,0.00036712,2]
[310162588,1704384742858,-575.77,0.00036712,2]
[310162589,1704384742867,-500.0,0.00036712,2]
[310162590,1704384742878,-500.0,0.00036712,2]
[310162591,1704384742888,-500.0,0.00036712,2]
[310162592,1704384742899,-210.29546091,0.00036712,2]
[310162593,1704384742908,-500.0,0.00036712,2]
[310162594,1704384742921,-566.18,0.00036712,2]
[310162595,1704384742931,-11794.58,0.00036712,2]
[310162596,1704384742941,-500.0,0.00036712,2]
[310162597,1704384742953,-500.0,0.00036712,2]
[310162598,1704384742963,-1416.07,0.00036712,2]
[310162599,1704384742973,-500.0,0.00036712,2]
[310162600,1704384742983,-1935.18,0.00036712,2]
[310162601,1704384742993,-1254.54,0.00036712,2]
[310162602,1704384743003,-1849.63988467,0.00036712,15]
[310162603,1704384743012,-2189.6,0.00036712,2]
[310162604,1704384743022,-500.0,0.00036712,2]
[310162605,1704384743032,-455.68755168,0.00036712,2]
[310162606,1704384743041,-1093.1,0.00036712,2]
[310162607,1704384743051,-746.5,0.00036712,2]
[310162608,1704384743061,-1922.89,0.00036712,2]
[310162609,1704384743071,-500.0,0.00036712,2]
[310162610,1704384743080,-500.0,0.00036712,2]
[310162611,1704384743090,-3029.2,0.00036712,2]
[310162612,1704384743100,-1065.96,0.00036712,2]
[310162613,1704384743110,-500.0,0.00036712,2]
[310162614,1704384743120,-1007.95,0.00036712,2]
[310162615,1704384743131,-11096.0,0.00036712,2]
[310162616,1704384743140,-747.54,0.00036712,2]
[310162617,1704384743149,-760.32,0.00036712,2]
[310162618,1704384743159,-12156.16,0.00036712,2]
[310162619,1704384743169,-834.78,0.00036712,2]
[310162620,1704384743178,-1718.28,0.00036712,2]
[310162621,1704384743189,-611.3,0.00036712,2]
[310162622,1704384743199,-697.33,0.00036712,2]
[310162623,1704384743209,-1413.99,0.00036712,2]
[310162624,1704384743219,-697.67,0.00036712,2]
[310162625,1704384743229,-1281.58,0.00036712,2]
[310162626,1704384743239,-520.32,0.00036712,2]
[310162627,1704384743250,-883.92,0.00036712,2]
[310162628,1704384743261,-1163.39,0.00036712,2]
[310162629,1704384743272,-1053.47,0.00036712,2]
[310162630,1704384743284,-726.31,0.00036712,2]
[310162631,1704384743295,-3994.67,0.00036712,2]
[310162632,1704384743307,-773.87,0.00036712,2]
[310162633,1704384743319,-500.0,0.00036712,2]
[310162634,1704384743330,-528.67,0.00036712,2]
[310162635,1704384743341,-891.04,0.00036712,2]
[310162636,1704384743352,-2976.44,0.00036712,2]
[310162637,1704384743362,-902.18,0.00036712,2]
[310162638,1704384743373,-1129.74,0.00036712,2]
[310162639,1704384743387,-8714.16,0.00036712,2]
[310162640,1704384743398,-371.64000079,0.00036712,2]
[310162641,1704384743410,-709.87,0.00036712,2]
[310162642,1704384743420,-573.28,0.00036712,2]
[310162643,1704384743430,-617.6,0.00036712,2]
[310162644,1704384743440,-539.92,0.00036712,2]
[310162645,1704384743450,-2912.75,0.00036712,2]
[310162646,1704384743459,-2375.82,0.00036712,2]
[310162647,1704384743469,-500.0,0.00036712,2]
[310162648,1704384743480,-880.41,0.00036712,2]
[310162649,1704384743490,-500.0,0.00036712,2]
[310162650,1704384743500,-500.0,0.00036712,2]
[310162651,1704384743510,-990.05,0.00036712,2]
[310162652,1704384743520,-712.84,0.00036712,2]
[310162653,1704384743531,-500.0,0.00036712,2]
[310162654,1704384743541,-1899.71,0.00036712,2]
[310162655,1704384743553,-704.89,0.00036712,2]
[310162656,1704384743565,-1360.68,0.00036712,2]
[310162657,1704384743576,-1757.15789044,0.00036712,15]
[310162658,1704384743586,-1752.91,0.00036712,2]
[310162659,1704384743596,-846.97,0.00036712,2]
[310162660,1704384743607,-500.0,0.00036712,2]
[310162661,1704384743618,-4094.39,0.00036712,2]
[310162662,1704384743632,-1446.57,0.00036712,2]
[310162663,1704384743643,-561.91,0.00036712,2]
[310162664,1704384743654,-1589.28,0.00036712,2]
[310162665,1704384743665,-834.84,0.00036712,2]
[310162666,1704384743675,-500.0,0.00036712,2]
[310162667,1704384743686,-1546.98,0.00036712,2]
[310162668,1704384743697,-1093.14,0.00036712,2]
[310162669,1704384743708,-564.13,0.00036712,2]
[310162670,1704384743719,-1945.09,0.00036712,2]
[310162671,1704384743729,-2073.94,0.00036712,2]
[310162672,1704384743740,-893.8,0.00036712,2]
[310162673,1704384743750,-900.7,0.00036712,2]
[310162674,1704384743760,-12496.39,0.00036712,2]
[310162675,1704384743770,-561.96,0.00036712,2]
[310162676,1704384743781,-514.0,0.00036712,2]
[310162677,1704384743791,-391.6703969,0.00036712,2]
[310162678,1704384743802,-500.0,0.00036712,2]
[310162679,1704384743813,-1205.79,0.00036712,2]
[310162680,1704384743823,-621.58,0.00036712,2]
[310162681,1704384743834,-500.0,0.00036712,2]
[310162682,1704384743845,-881.27,0.00036712,2]
[310162683,1704384743855,-10382.29,0.00036712,2]
[310162684,1704384743866,-1450.8,0.00036712,2]
[310162685,1704384743877,-3417.84,0.00036712,2]
[310162686,1704384743887,-987.12,0.00036712,2]
[310162687,1704384743897,-578.21,0.00036712,2]
[310162688,1704384743907,-552.04,0.00036712,2]
[310162689,1704384743917,-656.43,0.00036712,2]
[310162690,1704384743927,-940.22,0.00036712,2]
[310162691,1704384743936,-1439.1,0.00036712,2]
[310162692,1704384743946,-1079.52,0.00036712,2]
[310162693,1704384743956,-2270.39,0.00036712,2]
[310162694,1704384743966,-1396.67,0.00036712,2]
[310162695,1704384743975,-500.0,0.00036712,2]
[310162696,1704384743985,-5839.49,0.00036712,2]
[310162697,1704384743995,-1088.28,0.00036712,2]
[310162698,1704384744005,-500.0,0.00036712,2]
[310162699,1704384744015,-1904.93,0.00036712,2]
[310162700,1704384744024,-1535.77,0.00036712,2]
[310162701,1704384744033,-1236.96,0.00036712,2]
[310162702,1704384744042,-530.37,0.00036712,2]
[310162703,1704384744052,-500.0,0.00036712,2]
[310162704,1704384744062,-500.0,0.00036712,2]
[310162705,1704384744071,-3487.16,0.00036712,2]
[310162706,1704384744080,-4880.8,0.00036712,2]
[310162707,1704384744090,-568.13,0.00036712,2]
[310162708,1704384744100,-745.3,0.00036712,2]
[310162709,1704384744110,-2004.58,0.00036712,2]
[310162710,1704384744119,-809.18,0.00036712,2]
[310162711,1704384744129,-8885.11,0.00036712,2]
[310162712,1704384744138,-1186.38,0.00036712,2]
[310162713,1704384744148,-500.0,0.00036712,2]
[310162714,1704384744157,-500.0,0.00036712,2]
[310162715,1704384744167,-1779.45,0.00036712,2]
[310162716,1704384744176,-1353.33,0.00036712,2]
[310162717,1704384744186,-1121.93,0.00036712,2]
[310162718,1704384744196,-169.92787095,0.00036712,2]
[310162719,1704384744206,-1458.51639129,0.00036732,9]
[310162720,1704384744215,-287.88813521,0.00036732,14]
[310162721,1704384744225,-151.765019,0.00036743,14]
[310162722,1704384744235,-542.69938815,0.00036769,14]